fUST/lending_fUST_20240530
["ID","MTS","AMOUNT","RATE_DAILY","PERIOD"]
[328227681,1717075840343,-500.0,0.00019178,2]
[328227682,1717075840352,-79.64108006,0.00019178,2]
[328227736,1717075844487,-1871.01679575,0.00019164,2]
[328227737,1717075844498,-384.66,0.00019165,3]
[328227738,1717075844507,-360.81573783,0.00019178,2]
[328227739,1717075844516,-188.76720766,0.00019178,2]
[328227740,1717075844526,-500.0,0.00019178,2]
[328227741,1717075844536,-168.73891732,0.00019178,2]
[328227742,1717075844546,-500.0,0.00019178,2]
[328227743,1717075844556,-500.0,0.00019178,2]
[328227744,1717075844565,-500.0,0.00019178,2]
[328227745,1717075844575,-500.0,0.00019178,2]
[328227746,1717075844584,-500.0,0.00019178,2]
[328227747,1717075844594,-500.0,0.00019178,2]
[328227748,1717075844604,-500.0,0.00019178,2]
[328227749,1717075844614,-500.0,0.00019178,2]
[328227750,1717075844623,-500.0,0.00019178,2]
[328227751,1717075844633,-248.41876071,0.00019178,2]
[328227752,1717075844643,-500.0,0.00019178,2]
[328227753,1717075844652,-275.55713937,0.00019178,2]
[328227754,1717075844662,-408.88748936,0.00019178,2]
[328227755,1717075844671,-500.0,0.00019178,2]
[328227756,1717075844681,-500.0,0.00019178,2]
[328227757,1717075844690,-555.80744718,0.00019178,2]
[328227758,1717075844701,-524.71263386,0.00019178,2]
[328227759,1717075844808,-482.08308946,0.00019178,2]
[328227760,1717075844818,-500.0,0.00019178,2]
[328227761,1717075844827,-500.0,0.00019178,2]
[328227762,1717075844837,-500.0,0.00019178,2]
[328227763,1717075844846,-500.0,0.00019178,2]
[328227764,1717075844856,-500.0,0.00019178,2]
[328227765,1717075844865,-433.38652145,0.00019178,2]
[328227766,1717075844875,-500.0,0.00019178,2]
[328227767,1717075844884,-500.0,0.00019178,2]
[328227768,1717075844894,-500.0,0.00019178,2]
[328227769,1717075844903,-500.0,0.00019178,2]
[328227770,1717075844913,-500.0,0.00019178,2]
[328227771,1717075844922,-500.0,0.00019178,2]
[328227772,1717075844931,-500.0,0.00019178,2]
[328227773,1717075844941,-500.0,0.00019178,2]
[328227774,1717075844950,-535.63994334,0.00019178,2]
[328227775,1717075844959,-500.0,0.00019178,2]
[328227776,1717075844968,-500.0,0.00019178,2]
[328227777,1717075844978,-500.0,0.00019178,2]
[328227778,1717075844987,-500.0,0.00019178,2]
[328227779,1717075844997,-500.0,0.00019178,2]
[328227780,1717075845006,-195.64228517,0.00019178,2]
[328227781,1717075845015,-584.714168,0.00019178,2]
[328227782,1717075845025,-500.0,0.00019178,2]
[328227783,1717075845034,-200.0,0.00019178,2]
[328227784,1717075845043,-171.41233938,0.00019178,2]
[328227785,1717075845052,-500.0,0.00019178,2]
[328227786,1717075845061,-500.0,0.00019178,2]
[328227787,1717075845071,-500.0,0.00019178,2]
[328227788,1717075845084,-388.1063196,0.00019178,2]
[328227790,1717075845093,-500.0,0.00019178,2]
[328227791,1717075845104,-500.0,0.00019178,2]
[328227792,1717075845115,-500.0,0.00019178,2]
[328227793,1717075845125,-151.0,0.00019178,2]
[328227794,1717075845135,-151.0,0.00019178,2]
[328227795,1717075845144,-213.08756987,0.00019178,2]
[328227796,1717075845153,-500.88810742,0.00019178,2]
[328227797,1717075845162,-151.0,0.00019178,2]
[328227798,1717075845171,-152.38359,0.00019178,2]
[328227799,1717075845180,-151.0,0.00019178,2]
[328227800,1717075845190,-151.0,0.00019178,2]
[328227801,1717075845199,-151.0,0.00019178,2]
[328227802,1717075845209,-500.0,0.00019178,2]
[328227803,1717075845218,-186.375858,0.00019178,2]
[328227804,1717075845228,-151.0,0.00019178,2]
[328227805,1717075845237,-151.0,0.00019178,2]
[328227806,1717075845246,-151.0,0.00019178,2]
[328227807,1717075845255,-151.0,0.00019178,2]
[328227808,1717075845264,-284.971516,0.00019178,2]
[328227809,1717075845274,-500.0,0.00019178,2]
[328227810,1717075845283,-151.0,0.00019178,2]
[328227811,1717075845292,-151.0,0.00019178,2]
[328227812,1717075845302,-151.0,0.00019178,2]
[328227813,1717075845312,-151.0,0.00019178,2]
[328227814,1717075845322,-151.0,0.00019178,2]
[328227815,1717075845331,-420.99659127,0.00019178,2]
[328227816,1717075845342,-151.0,0.00019178,2]
[328227817,1717075845351,-175.211846,0.00019178,2]
[328227818,1717075845360,-151.0,0.00019178,2]
[328227819,1717075845369,-151.0,0.00019178,2]
[328227820,1717075845378,-151.0,0.00019178,2]
[328227821,1717075845388,-500.0,0.00019178,2]
[328227822,1717075845397,-151.0,0.00019178,2]
[328227823,1717075845407,-151.0,0.00019178,2]
[328227824,1717075845416,-151.0,0.00019178,2]
[328227825,1717075845425,-151.0,0.00019178,2]
[328227826,1717075845434,-250.788646,0.00019178,2]
[328227827,1717075845443,-291.39169648,0.00019178,2]
[328227828,1717075845453,-169.644612,0.00019178,2]
[328227829,1717075845462,-174.3752246,0.00019178,2]
[328227830,1717075845471,-169.811481,0.00019178,2]
[328227831,1717075845482,-151.0,0.00019178,2]
[328227832,1717075845491,-248.7,0.00019896,2]
[328227833,1717075845501,-154.89156971,0.0002,2]
[328227834,1717075845510,-1122.50051334,0.0002,2]
[328227835,1717075845520,-247.40000882,0.0002,2]
[328227836,1717075845530,-400.0,0.0002,2]
[328227837,1717075845539,-187.991172,0.0002,2]
[328227838,1717075845548,-151.0,0.0002,2]
[328227839,1717075845558,-151.0,0.0002,2]
[328227840,1717075845567,-178.73233887,0.00020447,2]
[328227841,1717075845577,-3000.0,0.00020547,2]
[328227842,1717075845586,-3000.0,0.00020547,2]
[328227843,1717075845595,-3000.0,0.00020547,2]
[328227844,1717075845605,-1615.8079064,0.00020547,2]
[328227845,1717075845613,-151.0,0.00020548,2]
[328227846,1717075845623,-151.0,0.00020548,2]
[328227847,1717075845632,-151.0,0.00020548,2]
[328227848,1717075845641,-324.39674675,0.00021,2]
[328227849,1717075845651,-232.66440457,0.00021,2]
[328227850,1717075845660,-248.7,0.00021051,3]
[328227851,1717075845669,-166.666666,0.00021918,2]
[328227852,1717075845678,-604.644036,0.00021918,2]
[328227853,1717075845687,-604.644036,0.00021918,2]
[328227854,1717075845697,-604.644036,0.00021918,2]
[328227855,1717075845709,-604.644036,0.00021918,2]
[328227856,1717075845718,-604.644036,0.00021918,2]
[328227857,1717075845728,-604.644036,0.00021918,2]
[328227858,1717075845739,-197.3122457,0.00021918,2]
[328227859,1717075846055,-407.3317903,0.00021918,2]
[328227860,1717075846065,-604.644036,0.00021918,2]
[328227861,1717075846075,-151.0,0.00021918,2]
[328227862,1717075846085,-248.7,0.00022206,3]
[328227864,1717075846094,-151.0,0.00022206,3]
[328227866,1717075846103,-53.8060329,0.00022288,2]
[328227871,1717075846135,-0.00580485,0.00022288,2]
[328227875,1717075846147,-605.25407538,0.00022288,2]
[328227878,1717075846155,-282.0,0.000223,2]
[328227880,1717075846165,-3984.52699617,0.00022368,2]
[328227882,1717075846174,-299.7786707,0.00022595,2]
[328227884,1717075846183,-2091.43127022,0.00022595,2]
[328227886,1717075846192,-438.92610371,0.00022596,2]
[328227888,1717075846202,-164.28466186,0.00022596,2]
[328227890,1717075846211,-178.99439023,0.00022596,2]
[328227892,1717075846220,-154.4728639,0.0002261,2]
[328227894,1717075846230,-166.666666,0.00022773,2]
[328227897,1717075846240,-352.52624978,0.00023,2]
[328227900,1717075846250,-156.04089734,0.00023,2]
[328227903,1717075846259,-248.7,0.00023361,5]
[328227908,1717075846271,-151.0,0.00023361,5]
[328227912,1717075846284,-621.95329566,0.00023402,2]
[328227914,1717075846298,-604.644036,0.00023627,2]
[328227916,1717075846310,-604.644036,0.00023627,2]
[328227918,1717075846323,-166.666666,0.00023627,2]
[328227920,1717075846334,-1675.03555243,0.000239,2]
[328227922,1717075846344,-151.0,0.000239,2]
[328227924,1717075846355,-193.316956,0.000239,2]
[328227925,1717075846367,-150.0,0.00023968,2]
[328227926,1717075846379,-497.0,0.00023968,2]
[328227927,1717075846391,-507.0,0.00024,2]
[328227928,1717075846403,-581.933308,0.00024384,2]
[328227929,1717075846415,-761.56258503,0.000244,2]
[328227930,1717075846428,-166.666666,0.00024482,2]
[328227931,1717075846440,-248.7,0.00024516,5]
[328227932,1717075846451,-151.0,0.00024516,5]
[328227933,1717075846464,-620.09766478,0.00024572,2]
[328227934,1717075846478,-291.9275846,0.00024603,2]
[328227935,1717075846490,-291.9275846,0.00024603,2]
[328227936,1717075846500,-500.0,0.00024658,2]
[328227937,1717075846511,-150.241,0.0002472,2]
[328227938,1717075846522,-228.294,0.00024722,2]
[328227939,1717075846533,-250.0,0.00024722,2]
[328227940,1717075846543,-172.922,0.00024722,2]
[328227941,1717075846553,-152.784,0.00024722,2]
[328227942,1717075846564,-250.0,0.00024722,2]
[328227943,1717075846575,-7501.40452549,0.00025,2]
[328227944,1717075846587,-761.60640302,0.00025,2]
[328227945,1717075846599,-456.9241108,0.00025,2]
[328227946,1717075846610,-539.25523831,0.00025,2]
[328227947,1717075846620,-19841.33807129,0.00025,2]
[328227948,1717075846633,-21256.78260877,0.00025,2]
[328227949,1717075846646,-13666.0,0.00025,2]
[328227950,1717075846659,-1705.56110482,0.00025,2]
[328227990,1717076451408,12000.0,0.00028,120]
[328227992,1717076846169,-7905.42450529,8.842e-05,2]
[328227993,1717076846191,-2110.18642515,8.843e-05,2]
[328227994,1717076846213,-179.2244186,8.844e-05,2]
[328227995,1717076846233,-281.96258992,8.844e-05,2]
[328227996,1717076846255,-721.11162131,8.845e-05,2]
[328227997,1717076846275,-38662.60061684,8.845e-05,2]
[328228004,1717076951217,-2033.47495412,8.832e-05,2]
[328228005,1717076951239,-9573.60369169,8.832e-05,2]
[328228006,1717076951260,-179.2244186,8.832e-05,2]
[328228007,1717076951282,-371.8824724,8.833e-05,2]
[328228008,1717076951303,-2117.69044916,8.833e-05,2]
[328228009,1717076951325,-758.67998318,8.834e-05,2]
[328228010,1717076951347,-2110.18642515,8.835e-05,2]
[328228011,1717076951367,-55424.90490287,8.842e-05,2]
[328228012,1717076951388,-445.56614937,8.843e-05,2]
[328228013,1717076951413,-59481.78144851,8.843e-05,2]
[328228014,1717076951433,-282.72196176,8.844e-05,2]
[328228015,1717076951454,-7905.42450529,8.844e-05,2]
[328228016,1717076951475,-24900.0,8.872e-05,2]
[328228017,1717076951497,-1498.84404502,9.887e-05,2]
[328228018,1717076951517,-153.26674155,9.894e-05,2]
[328228019,1717076951537,-201.92921771,9.897e-05,2]
[328228020,1717076951558,-1138.12457748,0.0001,2]
[328228022,1717076951580,-187.08126844,0.00013695,2]
[328228023,1717076951600,-3744.87032454,0.00013695,2]
[328228025,1717076951620,-2638.45567811,0.00013696,2]
[328228026,1717076951641,-1279.86056259,0.00013698,2]
[328228027,1717076951667,-3036.0668806,0.00013699,2]
[328228028,1717076951700,-613.929754,0.00013699,2]
[328228029,1717076951726,-180.61397698,0.000156,2]
[328228030,1717076951749,-190.23424749,0.000156,2]
[328228031,1717076960285,409.2789451,0.000129,2]
[328228032,1717076963115,-1112.63575959,0.000129,2]
[328228088,1717077032846,-756.68001359,0.00012551,2]
[328228090,1717077032855,-266.69880582,0.000129,2]
[328228408,1717077039245,-363.23301065,0.000129,2]
[328228410,1717077039255,-154.86062544,0.00016521,2]
[328228412,1717077039264,-1871.33083964,0.00016522,2]
[328228414,1717077039274,-523.47852028,0.00016522,2]
[328228416,1717077039284,-236.40862267,0.00016522,2]
[328228418,1717077039294,-224.82436382,0.00016736,2]
[328228420,1717077039306,-9322.300001,0.00016736,2]
[328228696,1717077042877,-5241.89848587,0.00016736,2]
[328228697,1717077042889,-333.12047965,0.00016736,2]
[328228698,1717077042900,-15573.83182961,0.00016736,2]
[328228730,1717077044297,-1352.94956658,0.00016736,2]
[328228732,1717077044310,-23375.98017634,0.00016736,2]
[328228734,1717077044320,-10567.56289365,0.00016737,2]
[328228771,1717077549635,1498.84404502,8.584e-05,2]
[328228772,1717077562514,361.54018526,8.583e-05,2]
[328228774,1717077605359,542.68894042,8.576e-05,2]
[328228775,1717077691728,377.51568384,0.00016737,7]
[328228778,1717077903462,-5000.0,8.638e-05,2]
[328228779,1717077923942,6596.9268293,7.64e-05,2]
[328228780,1717077923985,9000.0,7.64e-05,2]
[328228781,1717077924025,8440.76017908,7.64e-05,2]
[328228782,1717077924064,862.31299162,7.64e-05,2]
[328228784,1717078003053,2394.433897,7.631e-05,2]
[328228835,1717078232191,-6589.97806767,8.504e-05,2]
[328228837,1717078232201,-316.93496408,8.604e-05,2]
[328228838,1717078232210,-179.2244186,8.604e-05,2]
[328228840,1717078232219,-154.93802479,8.605e-05,2]
[328228842,1717078232229,-1314.89049976,8.605e-05,2]
[328228844,1717078232243,-1498.84404502,8.605e-05,2]
[328228846,1717078232251,-2682.95056097,8.605e-05,2]
[328228848,1717078232258,-55424.90490287,8.605e-05,2]
[328228850,1717078232267,-5357.59078242,8.606e-05,2]
[328229574,1717078239327,-522.26723825,8.604e-05,2]
[328229576,1717078239337,-7905.42450529,8.605e-05,2]
[328229577,1717078239347,-19277.6013848,8.605e-05,2]
[328229578,1717078239356,-4216.01290927,8.606e-05,2]
[328229580,1717078239365,-2021.07441417,8.606e-05,2]
[328229582,1717078239390,-12.40053995,8.606e-05,2]
[328229584,1717078239400,-3066.73023231,8.607e-05,2]
[328229585,1717078239409,-493.18217185,8.607e-05,2]
[328229586,1717078239581,-58988.59927666,8.607e-05,2]
[328229588,1717078239592,-413.60311571,8.607e-05,2]
[328229590,1717078239601,-2117.69044916,8.608e-05,2]
[328229592,1717078239611,-11076.90258158,8.608e-05,2]
[328229595,1717078239622,-1279.86056259,8.609e-05,2]
[328229597,1717078239631,-42031.28174721,8.609e-05,2]
[328229599,1717078239641,-2049.198445,8.629e-05,2]
[328229600,1717078239650,-154.90705577,9.682e-05,2]
[328229603,1717078239659,-6435.52761157,9.794e-05,2]
[328229604,1717078239669,-2110.18642515,9.887e-05,2]
[328229606,1717078239678,-1870.76625632,9.896e-05,2]
[328229608,1717078239687,-281.96258992,9.897e-05,2]
[328229610,1717078239697,-721.11162131,9.897e-05,2]
[328229612,1717078239707,-685.6,0.00010959,2]
[328229614,1717078239716,-413.60311569,0.0001115,2]
[328229616,1717078239726,-1138.12457748,0.00012551,2]
[328229618,1717078239735,-2406.5357047,0.00013699,2]
[328229620,1717078239746,-306.964877,0.00013699,2]
[328229622,1717078239755,-413.60311569,0.00013793,2]
[328229624,1717078239763,-944.22635229,0.00015,2]
[328229626,1717078239772,-190.23424749,0.000156,2]
[328229627,1717078239782,-413.60311569,0.00016435,2]
[328229628,1717078239792,-275.07948327,0.000165,2]
[328229629,1717078239802,-168.4094073,0.00016521,2]
[328229630,1717078239812,-4230.52943513,0.00016587,2]
[328229631,1717078239823,-468.511155,0.00016735,2]
[328229632,1717078239833,-181.70950151,0.00016735,2]
[328229633,1717078239842,-949.53897844,0.00016736,2]
[328229634,1717078239852,-155.16042844,0.00016737,2]
[328229635,1717078239862,-156.71552459,0.00016737,2]
[328229636,1717078239871,-783.78328957,0.00016737,2]
[328229637,1717078239881,-1591.2361069,0.00016737,2]
[328229638,1717078239890,-1112.9409253,0.00016737,2]
[328229639,1717078239900,-151.0,0.00016737,2]
[328229640,1717078239910,-10469.45949762,0.00017898,2]
[328229641,1717078239920,-151.0,0.00017898,2]
[328229642,1717078239929,-151.0,0.00017898,2]
[328229643,1717078239938,-897.05291791,0.00018,2]
[328229644,1717078239948,-456.47954654,0.00018212,2]
[328229645,1717078239958,-259.2207898,0.00018216,2]
[328229646,1717078239967,-1371.31370151,0.000189,2]
[328229647,1717078239977,-162.78996957,0.00019,2]
[328229648,1717078239988,-413.60311569,0.00019078,2]
[328229649,1717078239998,-2588.73069895,0.00019153,2]
[328229669,1717078241639,-2438.75987356,0.00019153,2]
[328229670,1717078241648,-1687.47159578,0.00019154,2]
[328229672,1717078241659,-1098.79690614,0.00019154,2]
[328229673,1717078241669,-1634.97162452,0.00019154,2]
[328229785,1717078403941,-1279.86056259,8.598e-05,2]
[328229786,1717078403963,-8720.13943741,8.598e-05,2]
[328229787,1717078420785,-1279.86056259,8.597e-05,2]
[328229788,1717078420810,-33311.1423098,8.598e-05,2]
[328229789,1717078420836,-1314.89049976,8.598e-05,2]
[328229790,1717078420863,-2117.69044916,8.598e-05,2]
[328229791,1717078420890,-9573.60369169,8.599e-05,2]
[328229792,1717078420917,-1884.47876169,8.602e-05,2]
[328229793,1717078420942,-56266.16757121,8.602e-05,2]
[328229794,1717078420969,-342.34442284,8.602e-05,2]
[328229795,1717078420993,-316.80466515,9.998e-05,2]
[328229796,1717078421019,-292.21047679,9.999e-05,2]
[328229797,1717078421046,-1180.96331016,9.999e-05,2]
[328229798,1717078421076,-155.35912045,9.999e-05,2]
[328229799,1717078421105,-2065.36134284,0.000129,2]
[328229800,1717078421134,-2082.8235334,0.00013699,2]
[328229802,1717078513195,286.20643645,0.00015,2]
[328229803,1717078644397,286.778773,0.00014343,2]
[328229804,1717078728034,944.22635229,0.00015,2]
[328229806,1717078763002,1138.12457748,0.00011544,2]
[328229807,1717078862019,1279.86056259,9.999e-05,2]
[328229808,1717078865454,1314.89049976,9.999e-05,2]
[328229814,1717079016761,7860.6421153,0.00014445,2]
[328229815,1717079125842,356.189306,0.00014392,2]
[328229816,1717079127166,286.20643645,0.00015,2]
[328229817,1717079181136,944.22635229,0.00015,2]
[328229821,1717079282537,173.77,0.00010959,2]
[328229822,1717079285637,1279.86056259,9.999e-05,2]
[328229823,1717079293095,868.88,0.00010959,2]
[328229824,1717079297135,-175.0,0.0003,120]
[328229825,1717079322512,231.16656322,9.999e-05,2]
[328229826,1717079336999,1314.89049976,9.999e-05,2]
[328229827,1717079342158,156.65819478,9.999e-05,2]
[328229828,1717079399874,24900.0,0.00014309,2]
[328229829,1717079400392,24900.0,0.00014309,2]
[328229871,1717079432378,-2117.69044916,0.00015277,2]
[328229873,1717079432388,-1279.86056259,0.00015277,2]
[328229875,1717079432397,-1314.89049976,0.00015278,2]
[328229877,1717079432406,-2806.12471328,0.00015279,2]
[328229879,1717079432415,-1221.89787631,0.00015281,2]
[328230373,1717079442542,-788.01288799,0.00015281,2]
[328230374,1717079442551,-390.98283153,0.00015284,2]
[328230375,1717079442561,-260.73969721,0.00015291,2]
[328230376,1717079442570,-156.84330884,0.0001538,2]
[328230377,1717079442579,-1800.73673708,0.0001538,2]
[328230400,1717079443999,-40230.54501013,0.0001538,2]
[328230401,1717079444008,-314.12529871,0.00015381,2]
[328230402,1717079444021,-195.79569524,0.00015383,2]
[328230403,1717079444030,-2709.30401177,0.00015383,2]
[328230404,1717079444040,-1910.45914962,0.00015384,2]
[328230405,1717079444050,-317.90536284,0.00015384,2]
[328230406,1717079444060,-284.06582614,0.00015384,2]
[328230407,1717079444069,-258.53055057,0.00015384,2]
[328230408,1717079444078,-9117.47224679,0.00015385,2]
[328230409,1717079444087,-8096.41611414,0.00015387,2]
[328230410,1717079444096,-175.879244,0.00015391,2]
[328230411,1717079444104,-44308.01128458,0.00015392,2]
[328230412,1717079444113,-5519.17311094,0.00015394,2]
[328230413,1717079444123,-191.42331628,0.000156,2]
[328230414,1717079444132,-390.98283153,0.00016233,2]
[328230415,1717079444142,-275.07948327,0.000165,2]
[328230416,1717079444151,-390.98283153,0.00017181,2]
[328230417,1717079444160,-10469.45949762,0.00017898,2]
[328230418,1717079444169,-897.05291791,0.00018,2]
[328230419,1717079444179,-390.98283153,0.0001813,2]
[328230420,1717079444189,-4230.52943513,0.00018706,2]
[328230421,1717079444198,-1244.7922903,0.000189,2]
[328230422,1717079444208,-162.78996957,0.00019,2]
[328230423,1717079444217,-177.8,0.00019067,2]
[328230424,1717079444227,-390.98283153,0.00019078,2]
[328230425,1717079444238,-770.97458691,0.00019154,2]
[328230426,1717079444247,-164.72123993,0.00019172,2]
[328230427,1717079444258,-921.98215006,0.00019173,2]
[328230428,1717079444269,-154.90705577,0.00019173,2]
[328230429,1717079444278,-156.7062527,0.00019173,2]
[328230430,1717079444288,-302.54185379,0.00019174,2]
[328230431,1717079444297,-155.25539934,0.00019175,2]
[328230432,1717079444306,-261.39779315,0.00019175,2]
[328230433,1717079444316,-172.77051557,0.00019175,2]
[328230434,1717079444325,-285.10915187,0.00019175,2]
[328230435,1717079444335,-155.02051107,0.00019175,2]
[328230436,1717079444344,-1153.04793075,0.00019176,2]
[328230437,1717079444353,-552.28063581,0.00019176,2]
[328230438,1717079444363,-237.15453864,0.00019176,2]
[328230439,1717079444372,-694.14748627,0.00019176,2]
[328230440,1717079444382,-155.13336705,0.00019176,2]
[328230441,1717079444391,-1782.90454913,0.00019176,2]
[328230442,1717079444400,-2896.76262949,0.00019176,2]
[328230443,1717079444409,-158.67086264,0.00019177,2]
[328230444,1717079444418,-6072.80660024,0.00019177,2]
[328230445,1717079444428,-2857.40324821,0.00019178,7]
[328230446,1717079444437,-500.0,0.00019178,2]
[328230447,1717079444447,-180.0,0.00019178,2]
[328230448,1717079444457,-184.9702725,0.00019178,2]
[328230449,1717079444467,-483.32024926,0.00019178,2]
[328230450,1717079444476,-500.0,0.00019178,2]
[328230451,1717079444486,-500.0,0.00019178,2]
[328230452,1717079444496,-500.0,0.00019178,2]
[328230453,1717079444506,-320.28240108,0.00019178,2]
[328230454,1717079444517,-500.0,0.00019178,2]
[328230455,1717079444526,-1553.63979015,0.00019178,2]
[328230456,1717079444535,-500.0,0.00019178,2]
[328230457,1717079444545,-1553.63979015,0.00019178,2]
[328230458,1717079444554,-1553.63979015,0.00019178,2]
[328230459,1717079444563,-500.0,0.00019178,2]
[328230460,1717079444573,-1553.63979015,0.00019178,2]
[328230461,1717079444582,-500.0,0.00019178,2]
[328230462,1717079444591,-1553.63979015,0.00019178,2]
[328230463,1717079444600,-1553.63979015,0.00019178,2]
[328230464,1717079444609,-1553.63979015,0.00019178,2]
[328230465,1717079444619,-500.0,0.00019178,2]
[328230466,1717079444627,-1553.63979015,0.00019178,2]
[328230467,1717079444637,-500.0,0.00019178,2]
[328230468,1717079444647,-1553.63979015,0.00019178,2]
[328230469,1717079444658,-500.0,0.00019178,2]
[328230470,1717079444667,-1553.63979015,0.00019178,2]
[328230471,1717079444676,-500.0,0.00019178,2]
[328230472,1717079444685,-500.0,0.00019178,2]
[328230473,1717079444694,-500.0,0.00019178,2]
[328230474,1717079444704,-1553.63979015,0.00019178,2]
[328230475,1717079444713,-1553.63979015,0.00019178,2]
[328230476,1717079444723,-1553.63979015,0.00019178,2]
[328230477,1717079444732,-500.0,0.00019178,2]
[328230478,1717079444742,-1553.63979015,0.00019178,2]
[328230479,1717079444752,-1553.63979015,0.00019178,2]
[328230480,1717079444761,-500.0,0.00019178,2]
[328230481,1717079444772,-556.7080751,0.00019178,2]
[328230482,1717079444781,-1553.63979015,0.00019178,2]
[328230483,1717079444791,-1553.63979015,0.00019178,2]
[328230484,1717079444800,-1553.63979015,0.00019178,2]
[328230485,1717079444810,-1553.63979015,0.00019178,2]
[328230486,1717079444819,-1553.63979015,0.00019178,2]
[328230487,1717079444828,-1553.63979015,0.00019178,2]
[328230488,1717079444838,-1553.63979015,0.00019178,2]
[328230489,1717079444850,-1553.63979015,0.00019178,2]
[328230490,1717079444860,-1553.63979015,0.00019178,2]
[328230491,1717079444870,-1553.63979015,0.00019178,2]
[328230492,1717079444880,-1553.63979015,0.00019178,2]
[328230493,1717079444889,-1553.63979015,0.00019178,2]
[328230495,1717079444899,-1553.63979015,0.00019178,2]
[328230497,1717079444908,-1553.63979015,0.00019178,2]
[328230499,1717079444917,-1569.17618804,0.00019178,2]
[328230501,1717079444927,-1569.17618804,0.00019178,2]
[328230503,1717079444937,-1569.17618804,0.00019178,2]
[328230506,1717079444946,-1569.17618804,0.00019178,2]
[328230507,1717079444955,-1569.17618804,0.00019178,2]
[328230510,1717079444965,-1569.17618804,0.00019178,2]
[328230511,1717079444974,-1569.17618804,0.00019178,2]
[328230513,1717079444983,-1569.17618804,0.00019178,2]
[328230515,1717079444993,-1569.17618804,0.00019178,2]
[328230517,1717079445002,-1569.17618804,0.00019178,2]
[328230520,1717079445011,-500.0,0.00019178,2]
[328230521,1717079445022,-641.84611948,0.00019178,2]
[328230524,1717079445032,-500.0,0.00019178,2]
[328230526,1717079445040,-500.0,0.00019178,2]
[328230528,1717079445050,-500.0,0.00019178,2]
[328230530,1717079445059,-500.0,0.00019178,2]
[328230532,1717079445069,-500.0,0.00019178,2]
[328230533,1717079445079,-500.0,0.00019178,2]
[328230536,1717079445089,-500.0,0.00019178,2]
[328230538,1717079445099,-413.01392646,0.00019178,2]
[328230539,1717079445108,-500.00000001,0.00019178,2]
[328230541,1717079445118,-500.0,0.00019178,2]
[328230544,1717079445128,-200.0,0.00019178,2]
[328230545,1717079445138,-200.0,0.00019178,2]
[328230548,1717079445148,-200.0,0.00019178,2]
[328230550,1717079445157,-500.0,0.00019178,2]
[328230552,1717079445167,-230.70797206,0.00019178,2]
[328230553,1717079445177,-500.0,0.00019178,2]
[328230555,1717079445186,-500.0,0.00019178,2]
[328230558,1717079445196,-500.0,0.00019178,2]
[328230560,1717079445205,-193.96118182,0.00019178,2]
[328230562,1717079445214,-5454.71750506,0.00019178,2]
[328230563,1717079445224,-500.0,0.00019178,2]
[328230566,1717079445233,-550.0,0.00019178,2]
[328230568,1717079445243,-500.0,0.00019178,2]
[328230570,1717079445254,-500.0,0.00019178,2]
[328230572,1717079445263,-505.49258401,0.00019178,2]
[328230584,1717079445378,-500.0,0.00019178,2]
[328230586,1717079445389,-500.0,0.00019178,2]
[328230589,1717079445399,-500.0,0.00019178,2]
[328230591,1717079445409,-500.0,0.00019178,2]
[328230593,1717079445418,-500.0,0.00019178,2]
[328230594,1717079445427,-500.0,0.00019178,2]
[328230597,1717079445437,-531.29266848,0.00019178,2]
[328230598,1717079445446,-225.53553283,0.00019178,2]
[328230600,1717079445456,-400.0,0.00019178,2]
[328230602,1717079445465,-344.13422558,0.00019178,2]
[328230604,1717079445474,-500.0,0.00019178,2]
[328230606,1717079445483,-500.0,0.00019178,2]
[328230608,1717079445493,-500.0,0.00019178,2]
[328230610,1717079445503,-500.0,0.00019178,2]
[328230613,1717079445512,-500.0,0.00019178,2]
[328230614,1717079445525,-311.16751082,0.00019178,2]
[328230616,1717079445534,-221.41700523,0.00019178,2]
[328230618,1717079445543,-383.47431789,0.00019178,2]
[328230620,1717079445552,-353.66979175,0.00019178,2]
[328230622,1717079445561,-500.0,0.00019178,2]